Cogmind - Beta 14 @@@ ROGUE MODE // 2024.12.21 @ 19:39:10 Player: Charango24 Result: Destroyed by G-34 Mercenary with Small Laser Performance ------------- Evolutions (0) 0 Regions Visited (2) 400 Robots Destroyed (22) 110 Value Destroyed (586) 586 Prototype IDs (0) 0 Alien Tech Used (0) 0 Bonus (0) 0 TOTAL SCORE: 1096 Bonus ------- None Cogmind --------- Core Integrity 0/250 Matter 300/300 Energy 248/250 System Corruption 0% Temperature Cool (13) Movement Core (200) Ox3 Location -10/Mines Parts ------- > --- POWER (1) -------- Ion Engine > --- PROPULSION (2) --- (None) > --- UTILITY (2) ------ Small Storage Unit Seismic Detector > --- WEAPON (2) ------- Small Laser > --- INVENTORY (8) ---- Ion Engine Light Treads Datajack Peak State ------------ > --- POWER ------------ Ion Engine > --- PROPULSION ------- Light Treads Light Treads > --- UTILITY ---------- Small Storage Unit Improved Terrain Scanner > --- WEAPON ----------- Assault Rifle Assault Rifle > --- INVENTORY -------- Ion Engine [Rating: 9] Favorites ----------- Power Ion Engine Engine Ion Engine Propulsion Light Treads Treads Light Treads Leg Aluminum Leg Flight Unit Flight Unit Utility Small Storage Unit Device Improved Terrain Scanner Storage Small Storage Unit Weapon Assault Rifle Energy Gun Small Laser Ballistic Gun Assault Rifle Build | -11 -10 -10 ------- Run | Yrd Mat Min Slots Evolved . | . . . Power . | . . . Propulsion . | . . . Utility . | . . . Weapon . | . . . Parts Attached 16 | 7 4 5 Power 1 | 1 . . Engine 1 | 1 . . Core . | . . . Reactor . | . . . Propulsion 8 | 2 4 2 Treads 4 | 2 2 . Leg 2 | . . 2 Wheel . | . . . Hover . | . . . Flight 2 | . 2 . Utility 3 | 2 . 1 Device 2 | 1 . 1 Storage 1 | 1 . . Processor . | . . . Hackware . | . . . Protection . | . . . Artifact . | . . . Weapon 4 | 2 . 2 Energy Gun 2 | . . 2 Energy Cannon . | . . . Ballistic Gun 2 | 2 . . Ballistic Cannon . | . . . Launcher . | . . . Special Weapon . | . . . Impact Weapon . | . . . Slashing Weapon . | . . . Piercing Weapon . | . . . Special Melee Weapon . | . . . Unidentified Prototypes . | . . . Parts Lost 8 | . 1 7 Power . | . . . Propulsion 4 | . 1 3 Utility 1 | . . 1 Weapon 3 | . . 3 Highest Loss Streak 3 | . 1 3 To Critical Strikes . | . . . Average Slot Usage (%) 97 | . 99 96 Engine 14 | . 14 14 Treads 21 | . 26 17 Leg 5 | . . 9 Device 13 | . 14 12 Storage 14 | . 14 14 Energy Gun 2 | . . 5 Ballistic Gun 24 | . 28 21 Peak Build Rating 9 | 9 9 9 Average Rating 8 | 8 8 8 On Entrance 6 | . 9 9 Naked Turns . | . . . Heaviest Build 15 | 15 15 15 Greatest Support 40 | 40 40 40 Greatest Overweight (x) 1 | . . 1 Average Overweight (x) . | . . . Largest Inventory Capacity 8 | 8 8 8 Average Capacity 7 | 7 8 8 Most Carried 6 | 3 5 6 Average Carried 1 | . 2 2 Final Capacity 8 | 8 8 8 Final Carried 3 | 1 2 3 Class Distribution -------------------- 93% | Mutant 6% | Scavenger-Mutant Dominant Class ---------------- Mutant | -10/Materials Mutant | -10/Mines Resources | -11 -10 -10 ----------- Run | Yrd Mat Min Matter Collected 774 | 318 239 217 Remotely . | . . . Salvage Created 854 | 114 410 330 Parts 56 | 7 25 24 Haulers Intercepted . | . . . Recyclers Shooed . | . . . Parts Field Recycled . | . . . Retrieved Matter . | . . . Parts Self-Destructed . | . . . Prevented . | . . . Kills | -11 -10 -10 ------- Run | Yrd Mat Min Combat Hostiles Destroyed 17 | . 9 8 Guns 17 | . 9 8 Classes Destroyed 4 | 2 2 . Tunneler 3 | 2 . 1 Recycler 2 | 1 1 . Swarmer 2 | . 2 . Grunt 15 | . 7 8 Best Kill Streak 5 | 2 3 5 Combat Bots Only 4 | . 2 4 Max Kills in Single Turn 2 | 1 1 2 Gunslinging . | . . . Exploded . | . . . Melee . | . . . Uniques/NPCs Destroyed . | . . . Combat | -11 -10 -10 -------- Run | Yrd Mat Min Hostile Shots Fired 127 | . 46 81 Missed 31 | . 13 18 Damage Taken 1056 | . 365 691 Core 253 | . 90 163 Absorbed by Shields . | . . . Core Remaining (%) 100 | 100 . . Volleys Fired 91 | 8 36 47 Largest 2 | 2 2 2 Hottest 80 | 40 40 80 Shots Fired 177 | 16 72 89 Gun 177 | 16 72 89 Cannon . | . . . Launcher . | . . . Special . | . . . Kinetic 151 | 16 72 63 Thermal 26 | . . 26 Explosive . | . . . Electromagnetic . | . . . Robot Hit Streak 8 | 5 8 7 Robot Miss Streak 3 | 3 3 3 Penetration Max . | . . . Secondary Targets 2 | . . 2 Max Gunslinging Chain 1 | . . 1 Shots Hit Robots 104 | 8 45 51 Core Hits 43 | 3 20 20 Critical Kills 2 | 1 1 . Critical Parts Destroyed . | . . . Critical Strikes 2 | 1 1 . Destroy 2 | 1 1 . Melee Attacks . | . . . Impact . | . . . Slashing . | . . . Piercing . | . . . Sneak Attacks . | . . . Combat Hostiles . | . . . Follow-up Attacks . | . . . Damage Inflicted 1335 | 99 597 639 Guns 1326 | 99 591 636 Cannons . | . . . Explosions . | . . . Melee . | . . . Ramming 9 | . 6 3 Kinetic 1117 | 99 591 427 Thermal 209 | . . 209 Explosive . | . . . Electromagnetic . | . . . Impact . | . . . Slashing . | . . . Piercing . | . . . Highest Corruption . | . . . Average Corruption . | . . . Corruption Purged . | . . . Corruption Blocked . | . . . Overload Shots . | . . . Overflow Damage . | . . . Projectiles . | . . . Explosions . | . . . Melee . | . . . Knockbacks . | . . . Impact . | . . . Kinetic . | . . . Secondary . | . . . Self-Inflicted Damage . | . . . Shots . | . . . Rammed 3 | . 3 . Targets Rammed 4 | . 3 1 Kicked 1 | . . 1 Crushed . | . . . Highest Temperature 126 | . 2 126 Average Temperature 40 | . 2 45 Received Heat Transfer 580 | . 174 406 Siege Activations . | . . . Robots Corrupted . | . . . Combat Hostiles . | . . . Parts Fried . | . . . Impact Corruptions . | . . . Robots Melted . | . . . Combat Hostiles . | . . . Parts Melted . | . . . Heat Transferred 475 | . . 475 Parts Sabotaged . | . . . Parts Stolen . | . . . Parts Stripped . | . . . Power Chain Reactions . | . . . Alert | -11 -10 -10 ------- Run | Yrd Mat Min Peak Influence 216 | 15 216 155 Initial 25 | . . 25 Average 40 | 5 69 54 Maximum Alert Level 1 | . 1 . Low Security (%) 98 | 100 93 100 Level 1 1 | . 6 . Level 2 . | . . . Level 3 . | . . . Level 4 . | . . . Level 5 . | . . . High Security . | . . . Max Security . | . . . Squads Dispatched 3 | . 3 . Investigation 1 | . 1 . Extermination . | . . . Reinforcement 2 | . 2 . Assault . | . . . Garrison . | . . . Intercept . | . . . Searches Triggered . | . . . Construction Impeded . | . . . Haulers Reinforced . | . . . Active Scanning Responses . | . . . Cargo Convoy Interrupts . | . . . Stealth | -11 -10 -10 --------- Run | Yrd Mat Min Distress Signals . | . . . Communications Jammed . | . . . Distress Signals . | . . . Times Spotted 39 | . 25 14 Peak Tracking Total 8 | . 8 3 Tactical Retreats 1 | . . 1 Traps | -11 -10 -10 ------- Run | Yrd Mat Min Traps Triggered 1 | . 1 . Indirectly . | . . . Trap Hack Attempts . | . . . Triggered . | . . . Disarmed . | . . . Reprogrammed . | . . . Reused . | . . . Traps Extracted . | . . . Installed . | . . . Triggered 1 | . . 1 Machines | -11 -10 -10 ---------- Run | Yrd Mat Min Machines Disabled 1 | . 1 . Max in Single Turn 1 | . 1 . Machines Repaired . | . . . Machines Dismantled . | . . . Machines Sabotaged . | . . . Overloaded Fab Kills . | . . . Hacking | -11 -10 -10 --------- Run | Yrd Mat Min Machines Accessed 5 | . 5 . Terminals 4 | . 4 . Fabricators . | . . . Repair Stations . | . . . Recycling Units 1 | . 1 . Scanalyzers . | . . . Garrison Access . | . . . Total Hacks 14 | . 14 . Successful 10 | . 10 . Failed 4 | . 4 . Catastrophic . | . . . Database Lockouts . | . . . Manual . | . . . Terminals 11 | . 11 . Fabricators . | . . . Repair Stations . | . . . Recycling Units 3 | . 3 . Scanalyzers . | . . . Garrison Access . | . . . Terminal Hacks 8 | . 8 . Branch Access Points 1 | . 1 . Scanalyzer Index 1 | . 1 . Alert Level 2 | . 2 . Unreport Threat 1 | . 1 . Locate Traps 1 | . 1 . Dispatch Records 1 | . 1 . Zone Layout 1 | . 1 . Fabricator Hacks . | . . . Repair Station Hacks . | . . . Recycling Unit Hacks 2 | . 2 . Report Inventory 1 | . 1 . Retrieve Components 1 | . 1 . Scanalyzer . | . . . Garrison Access Hacks . | . . . Unauthorized Hacks . | . . . Terminals . | . . . Fabricators . | . . . Repair Stations . | . . . Recycling Units . | . . . Scanalyzers . | . . . Garrison Access . | . . . Data Cores Recovered . | . . . Used . | . . . Hacking Detections 4 | . 4 . Full Trace Events 1 | . 1 . Feedback Events . | . . . Feedback Blocked . | . . . Robot Schematics Acquired . | . . . Robots Built . | . . . Authchips . | . . . Time . | . . . Total Robot Build Rating . | . . . Part Schematics Acquired . | . . . Parts Built . | . . . Authchips . | . . . Time . | . . . Total Part Build Rating . | . . . Parts Repaired . | . . . Time . | . . . Parts Recycled . | . . . Recycled Matter . | . . . Retrieved Matter . | . . . Retrieved Components . | . . . Parts Scanalyzed . | . . . Part Schematics Acquired . | . . . Parts Damaged . | . . . Bothacking | -11 -10 -10 ------------ Run | Yrd Mat Min Used RIF Installer . | . . . Robots Hacked . | . . . Non-combat . | . . . Combat . | . . . Robot Hacks Applied . | . . . Relay Couplers Released . | . . . Fabnet Peak Effective % . | . . . Robots Rewired . | . . . Allies Hacked . | . . . Hacks Repelled . | . . . Allies | -11 -10 -10 -------- Run | Yrd Mat Min Total Allies . | . . . Largest Group . | . . . Highest-Rated Group . | . . . Highest-Rated Ally . | . . . Total Orders . | . . . Ally Attacks . | . . . Total Damage . | . . . Kills . | . . . Allies Corrupted . | . . . Allies Melted . | . . . Intel | -11 -10 -10 ------- Run | Yrd Mat Min Robot Analysis Total . | . . . Derelict Logs Recovered . | . . . Drone Launches . | . . . Drone Recoveries . | . . . Exploration | -11 -10 -10 ------------- Run | Yrd Mat Min Turns Passed 2453 | 907 726 820 Spaces Moved 807 | 254 359 194 Core 6 | 6 . . Treads 634 | 248 359 27 Legs 167 | . . 167 Wheels . | . . . Hover . | . . . Flight . | . . . Fastest Speed 50 | 50 160 120 Average Speed 151 | 157 160 128 Slowest Speed 190 | 160 160 190 Overloaded Moves . | . . . Propulsion Burnouts . | . . . Robots Hopped . | . . . Cave-ins Triggered . | . . . Exploration Rate (%) 33 | 17 52 30 Regions Visited 2 Branch Regions 1 Pre-discovered Areas 1 | . . 1 Known Exits Taken 1 | . 1 . Unknown Exits Taken 1 | 1 . . Scrap Searched . | . . . Spaces Dug . | . . . Terrain Destroyed . | . . . Melee . | . . . Projectile . | . . . AOE . | . . . Terrain Rammed . | . . . Walls Destroyed . | . . . Machines Disabled . | . . . Actions | -11 -10 -10 --------- Run | Yrd Mat Min Total 1862 | 745 440 677 Wait 919 | 469 28 422 Move 805 | 253 358 194 Hop . | . . . Pick Up 19 | 8 5 6 Fast Attach . | . . . Attach 16 | 7 4 5 Detach 4 | . 3 1 Swap . | . . . Drop 4 | . 3 1 Fire 91 | 8 36 47 Melee . | . . . Ram . | . . . Kick 1 | . . 1 Crush 3 | . 3 . Escape Stasis . | . . . Rewire . | . . . Trap . | . . . Miscellaneous . | . . . Route ------- -11/Scrapyard -10/Materials (discovered 2 exits: [*Mat] / *Min) -10/Mines History --------- Turn | Location | Event 16 | -11/Scrapyard | Discovered new exit (range 16) 908 | -11/Scrapyard | Entered Materials 909 | -10/Materials | Build established: Mutant 998 | -10/Materials | Discovered new exit (range 15) 1451 | -10/Materials | Discovered new exit (range 15) 1468 | -10/Materials | Identified exit to Mines 1634 | -10/Materials | Entered Mines 1655 | -10/Mines | Excavation squad dispatched 1655 | -10/Mines | A large section of the Mines collapsed 1905 | -10/Mines | Excavation squad dispatched 2101 | -10/Mines | Core integrity fell below 50% 2155 | -10/Mines | Excavation squad dispatched 2185 | -10/Mines | Learned location of Storage (-8) 2278 | -10/Mines | Core integrity fell below 20% 2306 | -10/Mines | Lost 3 parts (1u2w) 2405 | -10/Mines | Excavation squad dispatched 2454 | -10/Mines | Destroyed by G-34 Mercenary with Small Laser Last Messages --------------- 02292_ G-34 Mercenary destroyed. 02298_ K-01 Serf collects debris. 02300_ Acquired 20 matter. 02309_ K-01 Serf collects debris. 02342_ Acquired Sml. Laser. 02343_ Dropped Sml. Laser. 02347_ K-01 Serf collects debris. 02348_ Acquired 10 matter. 02350_ K-01 Serf collects debris. 02403_ G-34 Mercenary destroyed. 02405_ ALERT: Derelict activity in mines confirmed. Dispatching additional escorted excavation squad. 02415_ R-06 Scavenger collects Ion Engine. 02421_ G-34 Mercenary destroyed. 02433_ Sml. Laser destroyed. 02438_ Aluminum Leg destroyed. 02440_ R-06 Scavenger collects Heat Sink. 02444_ K-01 Serf collects debris. 02454_ Aluminum Leg destroyed. Map ----- +----------------------------------------------------+ | ???#?????# #####?# #??????????????????? | | ????###### #??# #??????????????????? | | ????# #??## ##??????????????????? | | ????# ## #??#####???????????????????? | | ????# # #??????????????????????????? | | ???##^# # #??????????????????????????? | | ??## # # #??????????????????????????? | | ?## ##??????????????????????????? | | ?# #???????????????????????????? | | ?# #???????????????????????????? | | ?# #???????????????????????????? | | ?## #???#???????????????????????? | | ??# ##???????????????????????????? | | ??# ## #????????????????????????????? | | ??## ### ### #????????????????????????????? | | ???###?## #?# #??###???????????????????????? | | ???????# #?# #??# ???????????????????????? | | ???????# ### ?? ???????????????????????? | | ???????## ####??# #???????????????????????? | | ????????## #????# #???????????????????????? | | ?????????## ###### #???????????????????????? | | ??????????# ###?????????????????????? | | ??????????## ####### #?????????????????????? | | ???????????####?????## #?????????????????????? | | ?????????????????????#% #?????????????????????? | | ????????????????????##@t##????????????????????? | | ????????????????????#k #????????????????????? | | ????????????????????# #????????????????????? | | ????????????????????## ##????? #????????????? | | ?????????????????????## #### ##???????????? | | ??????????????????????# #???????????? | | ?????????# ###########gg #???????????? | | ?????????# *%! ##???????????? | | ?????????# # ###????????????? | | ??????????# ############### ##??????????????? | | ???????????????????????????####???????????????? | | ??????????????????????????????????????????????? | | ??????????????????????????????????????????????? | | ??????????????????????????????????????????????? | | ??????????????????????????????????????????????? | | ??????????????????????????????????????????????? | | ??????????????????????????????????????????????? | | ??????????????????????????????????????????????? | | ??????????????????????????????????????????????? | | ??????????????????????????????????????????????? | | ??????????????????????????????????????????????? | | ??????????????????????????????????????????????? | | ??????????????????????????????????????????????? | | ??????????????????????????????????????????????? | | ??????????????????????????????????????????????? | +----------------------------------------------------+ Best States ------------- Heat Dissipation 25 Energy Generation 10 Energy Capacity 250 Matter Stores 300 Matter Capacity 300 Sight Range 16 Terrain Scan Range 16 Terrain Scan Density 10 Evasion (%) 55 Recoil Reduction 2 Item Schematics ----------------- None Robot Schematics ------------------ None Fabricated ------------ Nothing Alien Tech Used ----------------- None Achievements -------------- None Challenges ------------ None Game ------ Seed ImpulseGodNanoactuators Manual? 0 Play Time 00:16:13 Cumulative 11.0 hours Start 2024.12.21 @ 19:12:56 End 2024.12.21 @ 19:39:10 Sessions 1 Manual Loads 0 Difficulty Rogue Special Mode None Game No. 16 Rogue 3 Adventurer 13 Explorer 0 Win Type - Total 0 Types 0/0/0/0/0/0/0/0/0 Lore% 7 Gallery% 20 Achievement% 19 Wizard Run 0 Options --------- Layout 1 ASCII 0 Keyboard 1 Movement Numpad Keybinds 0 Fullscreen 2 Font 24/Smallcaps Map View 50x35 Zoom Use 0% Tactical HUD 1 Map Filters NONE Filters NONE Steam 1 RUN: 7828a286-dfdb-42f8-8ca0-5c0439d47c3b